bitfinex-derivatives/quotes_BNBF0:USTF0_20250509
["timestamp","ask_amount","ask_price","bid_price","bid_amount"]
[1746807065842,0.722,634.38,633.91,0.58637111]
[1746807066045,0.722,634.38,633.92,0.58601947]
[1746807066242,0.722,634.38,633.93,0.58601947]
[1746807066446,0.722,634.38,633.77,0.49]
[1746807066648,0.722,634.38,633.78,0.58619032]
[1746807066945,0.722,634.38,633.79,0.58619032]
[1746807067147,0.722,634.38,633.8,0.58619032]
[1746807067346,0.722,634.38,633.81,0.58619032]
[1746807067548,0.722,634.38,633.82,0.58619032]
[1746807067749,0.388,634.48,633.83,0.58619032]
[1746807067949,0.388,634.48,633.84,0.58619032]
[1746807068149,0.388,634.48,633.85,0.58619032]
[1746807068350,0.388,634.48,633.86,0.58649414]
[1746807068553,0.388,634.48,633.87,0.58649414]
[1746807068747,0.388,634.48,633.88,0.58649414]
[1746807068945,0.26674422,634.47,633.89,0.58649414]
[1746807069145,0.26674422,634.47,633.77,0.49]
[1746807069446,0.26674422,634.47,633.78,0.5867754]
[1746807069651,0.26674422,634.47,633.79,0.5867754]
[1746807069851,0.26674422,634.47,633.8,0.5867754]
[1746807070052,0.26674422,634.47,633.77,0.49]
[1746807070255,0.26674422,634.47,633.78,0.58695676]
[1746807070450,0.728,634.46,633.79,0.58695676]
[1746807070651,0.728,634.46,633.77,0.49]
[1746807070849,0.26674422,634.45,633.78,0.5869325]
[1746807071053,0.26674422,634.45,633.79,0.5869325]
[1746807071353,0.26674422,634.45,633.77,0.49]
[1746807071554,0.26674422,634.45,633.78,0.58699932]
[1746807071749,0.26674422,634.45,633.79,0.58697066]
[1746807071953,0.26674422,634.45,633.8,0.58696649]
[1746807072152,0.26674422,634.45,633.77,0.49]
[1746807072349,0.26674422,634.45,633.78,0.58706609]
[1746807072553,0.26674422,634.45,633.79,0.58706609]
[1746807072750,0.54116728,634.45,633.8,0.58706609]
[1746807073055,0.54116728,634.45,633.77,0.49]
[1746807073355,0.26674422,634.44,633.78,0.58637821]
[1746807073555,0.26674422,634.44,633.79,0.58637821]
[1746807073749,0.26674422,634.44,633.8,0.58637821]
[1746807073951,0.26674422,634.44,633.81,0.58637821]
[1746807074149,0.728,634.46,633.82,0.58637821]
[1746807074447,0.728,634.46,633.83,0.58637821]
[1746807074652,0.728,634.46,633.84,0.58637821]
[1746807074853,0.728,634.46,633.85,0.58637821]
[1746807075054,0.728,634.46,633.86,0.58637821]
[1746807075253,0.728,634.46,633.87,0.58637821]
[1746807075452,0.728,634.46,633.77,0.49]
[1746807075648,0.728,634.46,633.78,0.5863199]
[1746807075855,0.728,634.46,633.79,0.5863199]
[1746807076050,0.728,634.46,633.8,0.5863199]
[1746807076254,0.728,634.46,633.81,0.5863199]
[1746807076451,0.728,634.46,633.82,0.5863199]
[1746807076654,0.728,634.46,633.83,0.5863199]
[1746807076851,0.728,634.46,633.84,0.5863199]
[1746807077053,0.728,634.46,633.85,0.5863199]
[1746807077254,0.728,634.46,633.86,0.5863199]
[1746807077453,0.728,634.46,633.87,0.5863199]
[1746807077755,0.728,634.46,633.77,0.49]
[1746807077956,0.728,634.46,633.78,0.58640479]
[1746807078158,0.728,634.46,633.77,0.49]
[1746807078360,0.728,634.46,633.78,0.58667219]
[1746807078557,0.728,634.46,633.79,0.58665441]
[1746807078859,0.26680567,634.45,633.77,0.49]
[1746807081666,0.27445553,634.44,633.77,0.49]
[1746807082166,0.26680567,634.43,633.77,0.49]
[1746807083867,0.399,634.42,633.77,0.49]
[1746807084169,0.26680567,634.41,633.77,0.49]
[1746807084365,0.26680567,634.41,633.78,0.31556691]
[1746807084669,0.27445985,634.4,633.78,0.31556691]
[1746807085069,0.26680567,634.39,633.78,0.31556691]
[1746807085568,0.399,634.42,633.79,0.58637674]
[1746807085767,0.399,634.42,633.8,0.58622696]
[1746807085968,0.399,634.42,633.78,0.31556691]
[1746807086268,0.399,634.42,633.79,0.58621042]
[1746807086467,0.399,634.42,633.8,0.58621042]
[1746807086665,0.399,634.42,633.81,0.58621042]
[1746807086869,0.399,634.42,633.78,0.31556691]
[1746807087064,0.399,634.42,633.79,0.58623343]
[1746807087268,0.399,634.42,633.8,0.58623343]
[1746807087465,0.399,634.42,633.81,0.58623343]
[1746807087769,0.399,634.42,633.82,0.58623343]
[1746807087970,0.399,634.42,633.83,0.58623343]
[1746807088170,0.399,634.42,633.84,0.58623343]
[1746807088370,0.399,634.42,633.85,0.58623343]
[1746807088570,0.399,634.42,633.86,0.58623343]
[1746807088766,0.399,634.42,633.87,0.58623343]
[1746807089066,0.399,634.42,633.88,0.58623343]
[1746807089270,0.399,634.42,633.89,0.58623343]
[1746807089467,0.399,634.42,633.9,0.58623343]
[1746807089668,0.399,634.42,633.91,0.58623343]
[1746807089872,0.399,634.42,633.92,0.58623343]
[1746807090173,0.399,634.42,633.93,0.58623343]
[1746807090374,0.399,634.42,633.94,0.58623343]
[1746807090675,0.399,634.42,633.95,0.58623343]
[1746807090868,0.399,634.42,633.96,0.58623343]
[1746807091067,0.399,634.42,633.97,0.58623343]
[1746807091270,0.399,634.42,633.98,0.58623343]
[1746807091471,0.399,634.42,633.99,0.58623343]
[1746807091667,0.399,634.42,634.0,0.58623343]
[1746807091866,0.399,634.42,634.01,0.58623343]
[1746807092074,0.399,634.42,634.02,0.58623343]
[1746807092267,0.399,634.42,634.03,0.58623343]
[1746807092469,0.399,634.42,634.04,0.58623343]
[1746807092669,0.399,634.42,634.05,0.58623343]
[1746807092872,0.399,634.42,634.06,0.58623343]
[1746807093073,0.399,634.42,634.07,0.58623343]
[1746807093269,0.399,634.42,634.08,0.58623343]
[1746807093469,0.399,634.42,634.09,0.58623343]
[1746807093669,0.399,634.42,634.1,0.58623343]
[1746807093872,0.399,634.42,634.11,0.58623343]
[1746807094074,0.399,634.42,634.12,0.58623343]
[1746807094270,0.399,634.42,634.13,0.58623343]
[1746807094569,0.399,634.42,634.14,0.58623343]
[1746807094769,0.399,634.42,634.15,0.58623343]
[1746807094972,0.399,634.42,634.16,0.58623343]
[1746807095171,0.399,634.42,634.17,0.58623343]
[1746807095372,0.399,634.42,634.18,0.58623343]
[1746807095671,0.399,634.42,634.19,0.58623343]
[1746807095871,0.399,634.42,634.2,0.58623343]
[1746807096179,0.399,634.42,634.21,0.58512727]
[1746807096477,0.399,634.42,634.22,0.58512727]
[1746807096678,0.399,634.42,634.23,0.58512727]
[1746807096972,0.399,634.42,634.24,0.58512727]
[1746807097180,0.399,634.42,634.25,0.58512727]
[1746807097378,0.399,634.42,634.26,0.58512727]
[1746807097577,0.399,634.42,634.27,0.58512727]
[1746807097771,0.399,634.42,634.28,0.58512727]
[1746807097973,0.399,634.42,634.29,0.58512727]
[1746807098171,0.399,634.42,633.99,0.383]
[1746807098172,0.399,634.42,634.3,0.58512727]
[1746807098374,0.399,634.42,634.31,0.58512727]
[1746807098577,0.399,634.42,634.32,0.58498364]
[1746807098873,0.399,634.42,634.33,0.58498364]
[1746807099071,0.399,634.42,634.34,0.58498364]
[1746807099276,0.399,634.42,634.35,0.58498364]
[1746807099476,0.399,634.42,634.36,0.58498364]
[1746807099675,0.399,634.42,634.37,0.58449155]
[1746807099875,0.399,634.42,634.38,0.58449155]
[1746807100078,0.399,634.42,634.39,0.58449155]
[1746807100276,0.399,634.42,634.4,0.58449155]
[1746807100476,0.399,634.42,634.41,0.58449155]
[1746807103578,0.399,634.42,634.41,0.58271962]
[1746807109989,0.639,634.72,634.41,0.58271962]
[1746807110289,0.639,634.72,633.99,0.383]
[1746807110485,0.639,634.72,634.0,0.58074289]
[1746807110685,0.639,634.72,634.01,0.58074289]
[1746807110882,0.639,634.72,634.02,0.58074289]
[1746807111083,0.639,634.72,634.03,0.58074289]
[1746807111387,0.639,634.72,634.04,0.58074289]
[1746807111586,0.639,634.72,634.05,0.58074289]
[1746807111788,0.639,634.72,634.06,0.58074289]
[1746807111989,0.639,634.72,634.07,0.58074289]
[1746807112189,0.639,634.72,634.08,0.58054606]
[1746807112390,0.639,634.72,634.09,0.58054606]
[1746807112686,0.398,634.71,634.1,0.58054606]
[1746807112891,0.398,634.71,634.11,0.58054606]
[1746807113190,0.398,634.71,634.12,0.58054606]
[1746807113389,0.398,634.71,634.13,0.58054606]
[1746807113591,0.398,634.71,634.14,0.58054606]
[1746807113894,0.398,634.71,634.15,0.58054606]
[1746807114087,0.398,634.71,634.16,0.58054606]
[1746807114291,0.398,634.71,633.99,0.383]
[1746807114292,0.398,634.71,634.17,0.58054606]
[1746807114487,0.398,634.71,634.18,0.58054606]
[1746807114686,0.398,634.71,634.19,0.58054606]
[1746807114890,0.398,634.71,634.2,0.89590399]
[1746807115192,0.398,634.71,634.21,0.58054606]
[1746807115491,0.398,634.71,634.22,0.58054606]
[1746807115691,0.398,634.71,634.23,0.58054606]
[1746807115891,0.398,634.71,634.24,0.58054606]
[1746807116091,0.398,634.71,634.25,0.58054606]
[1746807116291,0.398,634.71,634.26,0.58054606]
[1746807116491,0.398,634.71,634.27,0.58054606]
[1746807116692,0.398,634.71,634.28,0.58054606]
[1746807116992,0.398,634.71,634.2,0.31535793]
[1746807117292,0.398,634.71,634.21,0.57976425]
[1746807117492,0.398,634.71,634.2,0.31535793]
[1746807120392,0.398,634.71,634.21,0.57967392]
[1746807120592,0.398,634.71,634.22,0.57967392]
[1746807120789,0.398,634.71,634.23,0.57967392]
[1746807120995,0.398,634.71,634.24,0.57967392]
[1746807121293,0.398,634.71,634.2,0.31535793]
[1746807121294,0.398,634.71,634.25,0.57967392]
[1746807121493,0.398,634.71,634.26,0.57967392]
[1746807121694,0.398,634.71,634.27,0.57967392]
[1746807121894,0.398,634.71,634.28,0.57967392]
[1746807122094,0.398,634.71,634.2,0.31535793]
[1746807122295,0.398,634.71,634.21,0.57938587]
[1746807122496,0.398,634.71,634.22,0.57938587]
[1746807122692,0.398,634.71,634.23,0.57938587]
[1746807122894,0.398,634.71,634.24,0.57938587]
[1746807123092,0.398,634.71,634.25,0.57938587]
[1746807123295,0.398,634.71,634.26,0.57938587]
[1746807123595,0.398,634.71,634.27,0.57938587]
[1746807123797,0.398,634.71,634.28,0.57939749]
[1746807123993,0.398,634.71,634.2,0.31535793]
[1746807124193,0.398,634.71,634.21,0.57939988]
[1746807124391,0.398,634.71,634.22,0.57939988]
[1746807124598,0.473,634.84,634.23,0.57939988]
[1746807124797,0.473,634.84,634.24,0.57939988]
[1746807125095,0.473,634.84,634.25,0.57939988]
[1746807125296,0.473,634.84,634.26,0.57939988]
[1746807125491,0.473,634.84,634.27,0.57939988]
[1746807125796,0.473,634.84,634.25,0.568]
[1746807126095,0.473,634.84,634.26,0.57842953]
[1746807126297,0.473,634.84,634.25,0.568]
[1746807129797,0.26667581,634.83,634.25,0.568]
[1746807132798,0.27427707,634.82,634.25,0.568]
[1746807133198,0.26667581,634.81,634.25,0.568]
[1746807133801,0.27427707,634.82,634.25,0.568]
[1746807134200,0.26668842,634.81,634.25,0.568]
[1746807135796,0.2742695,634.8,634.25,0.568]
[1746807136096,0.26668842,634.79,634.25,0.568]
[1746807138802,0.27426626,634.78,634.25,0.568]
[1746807139001,0.26668842,634.77,634.25,0.568]
[1746807139202,0.26668842,634.77,634.2,0.31535793]
[1746807141099,0.473,634.84,634.2,0.31535793]
[1746807141303,0.473,634.84,634.21,0.575]
[1746807141503,0.2666339,634.83,634.21,0.575]
[1746807141898,0.473,634.84,634.21,0.575]
[1746807142409,0.473,634.84,634.22,0.31534798]
[1746807143206,0.26663543,634.83,634.22,0.31534798]
[1746807144201,0.473,634.84,634.22,0.31534798]
[1746807144708,0.26663096,634.83,634.22,0.31534798]
[1746807145408,0.398,634.86,634.22,0.31534798]
[1746807145708,0.26663653,634.85,634.22,0.31534798]
[1746807147809,0.27427274,634.84,634.22,0.31534798]
[1746807148303,0.26663653,634.83,634.22,0.31534798]
[1746807149202,0.73563653,634.83,634.22,0.31534798]
[1746807149606,0.26663653,634.82,634.22,0.31534798]
[1746807150709,0.2742868,634.81,634.22,0.31534798]
[1746807151102,0.26663653,634.8,634.22,0.31534798]
[1746807153610,0.2742868,634.79,634.22,0.31534798]
[1746807154112,0.26663653,634.78,634.22,0.31534798]
[1746807156808,0.2742868,634.77,634.22,0.31534798]
[1746807158215,0.26673193,634.76,634.22,0.31534798]
[1746807158810,0.2742868,634.77,634.22,0.31534798]
[1746807159313,0.26672265,634.76,634.22,0.31534798]
[1746807161513,0.2742868,634.77,634.22,0.31534798]
[1746807161814,0.26672213,634.76,634.22,0.31534798]
[1746807162716,0.27430409,634.75,634.22,0.31534798]
[1746807162921,0.26672213,634.74,634.22,0.31534798]
[1746807163619,0.27430409,634.75,634.22,0.31534798]
[1746807165819,0.26677271,634.74,634.22,0.31534798]
[1746807168430,0.867,634.83,634.22,0.31534798]
[1746807168621,0.2742868,634.73,634.22,0.31534798]
[1746807169028,0.2667449,634.72,634.22,0.31534798]
[1746807169219,0.54125888,634.72,634.22,0.31534798]
[1746807169423,0.27451398,634.72,634.22,0.31534798]
[1746807169824,0.2667449,634.71,634.22,0.31534798]
[1746807170329,0.2667449,634.71,634.23,0.414]
[1746807170530,0.2667449,634.71,634.24,0.31533804]
[1746807171333,0.2741064,634.87,634.24,0.31533804]
[1746807173029,2.0308231,635.24,634.24,0.31533804]
[1746807173329,0.27418198,634.95,634.24,0.31533804]
[1746807173726,0.26659716,634.94,634.24,0.31533804]
[1746807174229,0.26659716,634.94,634.25,0.58504418]
[1746807174430,0.518,634.95,634.26,0.58498856]
[1746807174626,0.518,634.95,634.27,0.58498856]
[1746807174828,0.518,634.95,634.28,0.58498856]
[1746807175025,0.518,634.95,634.29,0.58498856]
[1746807175230,0.518,634.95,634.3,0.58498856]
[1746807175430,0.518,634.95,634.24,0.31533804]
[1746807175431,0.518,634.95,634.31,0.58498856]
[1746807175631,0.518,634.95,634.32,0.58498856]
[1746807175831,0.518,634.95,634.33,0.58498856]
[1746807176129,0.518,634.95,634.34,0.58498856]
[1746807176326,0.518,634.95,634.35,0.58498856]
[1746807176530,0.518,634.95,634.36,0.58498856]
[1746807176728,0.518,634.95,634.37,0.58469762]
[1746807176932,0.518,634.95,634.38,0.58463009]
[1746807177232,0.518,634.95,634.39,0.58463009]
[1746807177434,0.518,634.95,634.4,0.58463009]
[1746807177626,0.518,634.95,634.24,0.31533804]
[1746807177826,0.518,634.95,634.25,0.58461557]
[1746807178029,0.518,634.95,634.26,0.58461557]
[1746807178334,0.518,634.95,634.27,0.58461557]
[1746807178532,0.518,634.95,634.28,0.89993372]
[1746807178833,0.518,634.95,634.29,0.58461557]
[1746807179028,0.518,634.95,634.3,0.58420885]
[1746807179227,0.518,634.95,634.31,0.58420885]
[1746807179427,0.518,634.95,634.28,0.31531815]
[1746807179428,0.518,634.95,634.32,0.58420885]
[1746807179626,0.518,634.95,634.33,0.58420885]
[1746807179830,0.518,634.95,634.34,0.58420885]
[1746807180030,0.518,634.95,634.35,0.58420885]
[1746807180233,0.518,634.95,634.36,0.58420885]
[1746807180534,0.518,634.95,634.37,0.58420885]
[1746807180735,0.518,634.95,634.38,0.58387058]
[1746807180935,0.518,634.95,634.39,0.58387058]
[1746807181135,0.518,634.95,634.4,0.58387058]
[1746807181336,0.518,634.95,634.41,0.58387058]
[1746807181531,0.518,634.95,634.42,0.58387058]
[1746807181729,0.518,634.95,634.43,0.58387058]
[1746807181934,0.518,634.95,634.44,0.58387058]
[1746807182135,0.518,634.95,634.45,0.58387058]
[1746807182332,0.518,634.95,634.46,0.58387058]
[1746807182535,0.518,634.95,634.47,0.58387058]
[1746807182733,0.518,634.95,634.48,0.58387058]
[1746807182931,0.518,634.95,634.49,0.58387058]
[1746807183137,0.518,634.95,634.5,0.58387058]
[1746807183333,0.518,634.95,634.51,0.58387058]
[1746807183533,0.518,634.95,634.52,0.58387058]
[1746807183736,0.518,634.95,634.53,0.58387058]
[1746807183933,0.518,634.95,634.54,0.58387058]
[1746807184133,0.518,634.95,634.28,0.31531815]
[1746807184335,0.518,634.95,634.29,0.58274383]
[1746807184536,0.518,634.95,634.3,0.58274383]
[1746807184736,0.518,634.95,634.31,0.58274383]
[1746807184934,0.518,634.95,634.32,0.58274383]
[1746807185138,0.518,634.95,634.33,0.58274383]
[1746807185338,0.518,634.95,634.34,0.58274383]
[1746807185635,0.518,634.95,634.35,0.58274383]
[1746807185838,0.518,634.95,634.36,0.58274383]
[1746807186037,0.518,634.95,634.37,0.58274383]
[1746807186236,0.518,634.95,634.38,0.58274383]
[1746807186433,0.518,634.95,634.39,0.58195252]
[1746807186739,0.518,634.95,634.4,0.58195252]
[1746807186938,0.518,634.95,634.41,0.58195252]
[1746807187235,0.518,634.95,634.42,0.58195252]
[1746807187439,0.518,634.95,634.43,0.58195252]
[1746807187638,0.518,634.95,634.44,0.58195252]
[1746807187940,0.518,634.95,634.45,0.89692699]
[1746807188141,0.518,634.95,634.46,0.58169333]
[1746807188340,0.518,634.95,634.47,0.58169333]
[1746807188535,0.518,634.95,634.48,0.58169333]
[1746807188740,0.397,635.06,634.49,0.58169333]
[1746807188935,0.397,635.06,634.5,0.58169333]
[1746807189135,0.397,635.06,634.51,0.58169333]
[1746807189338,0.397,635.06,634.52,0.58169333]
[1746807189536,0.397,635.06,634.53,0.58169333]
[1746807189739,0.397,635.06,634.54,0.58169333]
[1746807189936,0.397,635.06,634.55,0.58169333]
[1746807190140,0.397,635.06,634.56,0.58169333]
[1746807190339,0.397,635.06,634.57,0.58169333]
[1746807190543,0.397,635.06,634.58,0.58169333]
[1746807190745,0.397,635.06,634.59,0.58169333]
[1746807190945,0.397,635.06,634.6,0.58169333]
[1746807191246,0.397,635.06,634.61,0.58169333]
[1746807191442,0.397,635.06,634.62,0.58169333]
[1746807191640,0.397,635.06,634.63,0.58169333]
[1746807191844,0.397,635.06,634.64,0.58169333]
[1746807192142,0.397,635.06,634.65,0.58169333]
[1746807192344,0.397,635.06,634.66,0.58169333]
[1746807192643,0.397,635.06,634.67,0.58169333]
[1746807192842,0.397,635.06,634.45,0.31523366]
[1746807193045,0.397,635.06,634.46,0.58032283]
[1746807193246,0.397,635.06,634.47,0.58026596]
[1746807193446,0.397,635.06,634.48,0.58026596]
[1746807193646,0.397,635.06,634.45,0.31523366]
[1746807193647,0.397,635.06,634.49,0.58026596]
[1746807193848,0.397,635.06,634.5,0.58026596]
[1746807194042,0.397,635.06,634.51,0.89546981]
[1746807194242,0.397,635.06,634.52,0.58026596]
[1746807194543,0.397,635.06,634.53,0.58026596]
[1746807194747,0.397,635.06,634.54,0.58026596]
[1746807194949,0.397,635.06,634.55,0.58026596]
[1746807195246,0.397,635.06,634.56,0.58026596]
[1746807195447,0.397,635.06,634.57,0.58026596]
[1746807195648,0.397,635.06,634.58,0.58026596]
[1746807195848,0.397,635.06,634.59,0.58026596]
[1746807196148,0.397,635.06,634.6,0.8695704]
[1746807196345,0.397,635.06,634.61,0.58026596]
[1746807196550,0.397,635.06,634.62,0.58026596]
[1746807196746,0.397,635.06,634.63,0.8695704]
[1746807196951,0.397,635.06,634.64,0.58026596]
[1746807197150,0.397,635.06,634.65,0.58026596]
[1746807197345,0.397,635.06,634.66,0.58026596]
[1746807197546,0.397,635.06,634.67,0.58026596]
[1746807197750,0.397,635.06,634.68,0.58026596]
[1746807198051,0.397,635.06,634.69,0.58026596]
[1746807198246,0.397,635.06,634.51,0.31520385]
[1746807198247,0.397,635.06,634.7,0.58026596]
[1746807198447,0.397,635.06,634.71,0.58026596]
[1746807198645,0.397,635.06,634.72,0.58026596]
[1746807198845,0.397,635.06,634.73,0.58026596]
[1746807199045,0.397,635.06,634.74,0.58026596]
[1746807199248,0.397,635.06,634.75,0.58026596]
[1746807199451,0.397,635.06,634.76,0.58026596]
[1746807199650,0.397,635.06,634.77,0.58026596]
[1746807199851,0.397,635.06,634.51,0.31520385]
[1746807200053,0.397,635.06,634.52,0.57755233]
[1746807200249,0.397,635.06,634.53,0.57750954]
[1746807200449,0.397,635.06,634.54,0.57750954]
[1746807200652,0.397,635.06,634.55,0.57750954]
[1746807200848,0.397,635.06,634.56,0.57750954]
[1746807201047,0.397,635.06,634.57,0.57750954]
[1746807201254,0.523,635.26,634.58,0.57750954]
[1746807201455,0.523,635.26,634.59,0.57750954]
[1746807201656,0.523,635.26,634.6,0.57750954]
[1746807201857,0.523,635.26,634.61,0.57750954]
[1746807202156,0.523,635.26,634.62,0.57750954]
[1746807202355,0.523,635.26,634.63,0.57750954]
[1746807202556,0.523,635.26,634.64,0.57750954]
[1746807202749,0.523,635.26,634.65,0.57750954]
[1746807202954,0.523,635.26,634.66,0.57750954]
[1746807203256,0.523,635.26,634.67,0.57750954]
[1746807203456,0.523,635.26,634.68,0.57750954]
[1746807203650,0.523,635.26,634.69,0.57750954]
[1746807203851,0.523,635.26,634.7,0.86669797]
[1746807204053,0.523,635.26,634.71,0.86669797]
[1746807204251,0.523,635.26,634.72,0.57750954]
[1746807204456,0.523,635.26,634.73,0.57750954]
[1746807204658,0.523,635.26,634.74,0.57750954]
[1746807204855,0.523,635.26,634.75,0.57750954]
[1746807205055,0.523,635.26,634.76,0.57750954]
[1746807205254,0.523,635.26,634.77,0.57750954]
[1746807205457,0.523,635.26,634.78,0.57750954]
[1746807205758,0.523,635.26,634.79,0.57750954]
[1746807205959,0.523,635.26,634.8,0.57750954]
[1746807206158,0.523,635.26,634.81,0.57750954]
[1746807206358,0.523,635.26,634.82,0.57750954]
[1746807206559,0.523,635.26,634.58,0.406]
[1746807206560,0.523,635.26,634.83,0.57750954]
[1746807206754,0.523,635.26,634.84,0.57750954]
[1746807206952,0.523,635.26,634.85,0.57750954]
[1746807207154,0.523,635.26,634.86,0.57750954]
[1746807207354,0.523,635.26,634.87,0.57405854]
[1746807207554,0.523,635.26,634.88,0.57405854]
[1746807207759,0.523,635.26,634.89,0.57405854]
[1746807207959,0.523,635.26,634.9,0.57405854]
[1746807208259,0.523,635.26,634.91,0.57405854]
[1746807208460,0.523,635.26,634.92,0.57405854]
[1746807208760,0.523,635.26,634.93,0.57405854]
[1746807208959,0.523,635.26,634.94,0.57405854]
[1746807209162,0.523,635.26,634.95,0.57405854]
[1746807209356,0.523,635.26,634.96,0.57405854]
[1746807209658,0.523,635.26,634.95,0.28915676]
[1746807209855,0.523,635.26,634.97,0.28915676]
[1746807210362,0.523,635.26,634.59,0.28915676]
[1746807210561,0.523,635.26,634.6,0.5732019]
[1746807210762,0.397,635.31,634.61,0.5732019]
[1746807210957,0.397,635.31,634.62,0.5732019]
[1746807211157,0.397,635.31,634.63,0.5732019]
[1746807211560,0.397,635.31,634.64,0.28915676]
[1746807211761,0.397,635.31,634.65,0.5732019]
[1746807212160,0.27384109,636.17,634.66,0.28915676]
[1746807212359,0.27384109,636.17,634.67,0.5732019]
[1746807212564,0.26610494,636.16,634.67,0.5732019]
[1746807212764,0.26610494,636.16,634.68,0.57327112]
[1746807212964,0.26610494,636.16,634.69,0.57327112]
[1746807213264,0.26610494,636.16,634.7,0.86242788]
[1746807213465,0.26610494,636.16,634.71,0.57327112]
[1746807213762,0.26610494,636.16,634.71,0.86242788]
[1746807213964,0.26610494,636.16,634.72,0.57327112]
[1746807214160,0.471,636.15,634.72,0.86242788]
[1746807214365,0.471,636.15,634.73,0.57327112]
[1746807214866,0.26610494,636.14,634.73,0.86242788]
[1746807215065,0.26610494,636.14,634.74,0.57327112]
[1746807215367,0.26610494,636.14,634.75,0.57327112]
[1746807215560,0.26610494,636.14,634.76,0.28915676]
[1746807215765,0.26610494,636.14,634.77,0.57327112]
[1746807216064,0.26610494,636.14,634.78,0.57327112]
[1746807216264,0.26610494,636.14,634.79,0.57327112]
[1746807216462,0.26610494,636.14,634.8,0.28915676]
[1746807216666,0.27378616,636.13,634.81,0.57327112]
[1746807216861,0.27378616,636.13,634.82,0.57327112]
[1746807217062,0.27378616,636.13,634.8,0.28915676]
[1746807217259,0.26610494,636.12,634.81,0.57336261]
[1746807217459,0.26610494,636.12,634.82,0.57336261]
[1746807217659,0.26610494,636.12,634.58,0.406]
[1746807217864,0.26610494,636.12,634.59,0.57336285]
[1746807218064,0.26610494,636.12,634.6,0.57336285]
[1746807218264,0.26610494,636.12,634.61,0.57336285]
[1746807218565,0.26610494,636.12,634.62,0.57336285]
[1746807218865,0.26610494,636.12,634.63,0.28921343]
[1746807219065,0.26610494,636.12,634.64,0.57336285]
[1746807219559,0.26610494,636.12,634.65,0.28921343]
[1746807219765,0.27378939,636.11,634.66,0.57351061]
[1746807219965,0.27378939,636.11,634.67,0.57351061]
[1746807220265,0.26610494,636.1,634.68,0.57351061]
[1746807220465,0.26610494,636.1,634.69,0.86272404]
[1746807220760,0.26610494,636.1,634.7,0.57351061]
[1746807221067,0.26610494,636.1,634.71,0.57351061]
[1746807221261,0.26610494,636.1,634.72,0.57351061]
[1746807221463,0.26610494,636.1,634.73,0.28921343]
[1746807221659,0.26610494,636.1,634.74,0.57361962]
[1746807221860,0.26610494,636.1,634.75,0.57361962]
[1746807222061,0.26610494,636.1,634.76,0.57361962]
[1746807222364,0.26610494,636.1,634.77,0.57361962]
[1746807222565,0.26610494,636.1,634.78,0.57361962]
[1746807222865,0.471,636.15,634.79,0.28921343]
[1746807222866,0.27378723,636.09,634.79,0.28921343]
[1746807223066,0.27378723,636.09,634.8,0.57361962]
[1746807223265,0.26610494,636.08,634.8,0.57361962]
[1746807223465,0.26610494,636.08,634.81,0.28921343]
[1746807223761,0.26610494,636.08,634.82,0.57361962]
[1746807224767,0.26610494,636.08,634.83,0.28921343]
[1746807224963,0.26610494,636.08,634.84,0.57361962]
[1746807225467,0.27378723,636.09,634.84,0.57361962]
[1746807225764,0.26606409,636.07,634.85,0.86278754]
[1746807225966,0.26606409,636.08,634.86,0.57361962]
[1746807226463,0.26606409,636.08,634.87,0.28916792]
[1746807226669,0.26606409,636.08,634.88,0.57361962]
[1746807227669,0.26606409,636.08,634.87,0.28916792]
[1746807227870,0.26606409,636.08,634.88,0.57546306]
[1746807228173,0.26606409,636.14,634.89,0.86463098]
[1746807228364,0.26606409,636.14,634.9,0.57546306]
[1746807228566,0.26606409,636.14,634.9,0.86463098]
[1746807228764,0.26606409,636.14,634.91,0.57546306]
[1746807229064,0.26606409,636.14,634.91,0.86463098]